fUSD/lending_fUSD_20260421
["ID","MTS","AMOUNT","RATE_DAILY","PERIOD"]
[420911852,1776713447770,-500.0,0.00021917,2]
[420911853,1776713447779,-5000.0,0.00021918,2]
[420911854,1776713447788,-314.7,0.00021921,2]
[420911855,1776713447798,-518.0,0.00022,2]
[420911856,1776713447807,-210.0,0.00022,2]
[420911857,1776713447816,-845.0,0.00022,2]
[420911858,1776713447825,-1825.0,0.00022,2]
[420911859,1776713447835,-1500.0,0.00022,2]
[420911860,1776713447844,-411.0,0.00022,2]
[420911861,1776713447854,-294.0,0.00022,2]
[420911862,1776713447864,-1919.0,0.00022,2]
[420911863,1776713447873,-626.0,0.00022,2]
[420911864,1776713447882,-536.0,0.00022,2]
[420911865,1776713447891,-375.84,0.00022,30]
[420911866,1776713447900,-297.25,0.00022175,30]
[420911867,1776713447910,-1014.2129578,0.0002254,5]
[420911868,1776713447919,-1107.33677266,0.0002254,5]
[420911869,1776713447928,-1019.74869273,0.0002254,5]
[420911870,1776713447937,-1125.4179636,0.0002254,5]
[420911871,1776713447946,-1143.00686864,0.0002254,5]
[420911872,1776713447956,-1052.98765979,0.0002254,5]
[420911873,1776713447965,-1108.01248532,0.0002254,5]
[420911874,1776713447974,-1138.26131381,0.0002254,5]
[420911875,1776713447984,-500.0,0.0002261,2]
[420911876,1776713447994,-500.0,0.0002261,2]
[420911877,1776713448003,-327.26162783,0.0002261,2]
[420911878,1776713448012,-500.0,0.0002261,2]
[420911879,1776713448021,-1265.0,0.00022849,2]
[420911880,1776713448030,-4793.0,0.00022856,2]
[420911881,1776713448040,-500.0,0.000229,2]
[420911882,1776713448049,-113.51209187,0.00023,2]
[420911883,1776713448065,-373.44672415,0.00023,2]
[420911884,1776713448080,-31.04118398,0.00023,2]
[420911885,1776713448089,-210.0,0.00023,2]
[420911886,1776713448099,-845.0,0.00023,2]
[420911887,1776713448108,-1825.0,0.00023,2]
[420911888,1776713448117,-1500.0,0.00023,2]
[420911889,1776713448126,-411.0,0.00023,2]
[420911890,1776713448135,-294.0,0.00023,2]
[420911891,1776713448144,-1919.0,0.00023,2]
[420911892,1776713448153,-626.0,0.00023,2]
[420911893,1776713448162,-536.0,0.00023,2]
[420911894,1776713448172,-314.7,0.00023017,2]
[420911895,1776713448182,-1078.87209137,0.00023268,120]
[420911896,1776713448191,-5151.31648106,0.00023268,120]
[420911897,1776713448200,-316.85049501,0.00023268,120]
[420911898,1776713448209,-150.0,0.00023268,120]
[420911899,1776713448218,-265.0,0.00023268,120]
[420911900,1776713448228,-260.0,0.00023393,4]
[420911901,1776713448237,-1000.0,0.00023448,2]
[420911902,1776713448246,-1600.0,0.00023789,2]
[420911903,1776713448255,-2000.0,0.000238,2]
[420911904,1776713448264,-213.38714215,0.000238,2]
[420911905,1776713448273,-350.0,0.00023819,2]
[420911906,1776713448284,-150.0,0.00023873,2]
[420911907,1776713448293,-500.0,0.00023899,2]
[420911908,1776713448303,-500.0,0.00023899,2]
[420911909,1776713448313,-2500.0,0.00023899,2]
[420911910,1776713448322,-500.0,0.000239,7]
[420911911,1776713448332,-500.0,0.000239,7]
[420911912,1776713448341,-500.0,0.000239,7]
[420911913,1776713448350,-500.0,0.000239,7]
[420911914,1776713448359,-500.0,0.000239,7]
[420911915,1776713448368,-500.0,0.000239,7]
[420911916,1776713448378,-500.0,0.000239,7]
[420911917,1776713448387,-500.0,0.000239,7]
[420911918,1776713448396,-500.0,0.000239,7]
[420911919,1776713448405,-500.0,0.000239,7]
[420911920,1776713448414,-500.0,0.000239,7]
[420911921,1776713448423,-500.0,0.000239,7]
[420911922,1776713448433,-500.0,0.000239,7]
[420911923,1776713448442,-500.0,0.000239,7]
[420911924,1776713448451,-500.0,0.000239,7]
[420911925,1776713448461,-500.0,0.000239,7]
[420911926,1776713448470,-500.0,0.000239,7]
[420911927,1776713448479,-500.0,0.000239,7]
[420911928,1776713448488,-500.0,0.000239,7]
[420911929,1776713448498,-500.0,0.000239,7]
[420911930,1776713448507,-500.0,0.000239,7]
[420911931,1776713448517,-500.0,0.000239,7]
[420911932,1776713448527,-500.0,0.000239,7]
[420911933,1776713448536,-500.0,0.000239,7]
[420911934,1776713448545,-500.0,0.000239,7]
[420911935,1776713448554,-500.0,0.000239,7]
[420911936,1776713448564,-500.0,0.000239,7]
[420911937,1776713448573,-500.0,0.000239,7]
[420911938,1776713448583,-500.0,0.000239,7]
[420911939,1776713448592,-500.0,0.000239,7]
[420911940,1776713448601,-500.0,0.000239,7]
[420911941,1776713448610,-500.0,0.000239,7]
[420911942,1776713448620,-500.0,0.000239,7]
[420911943,1776713448629,-500.0,0.000239,7]
[420911944,1776713448638,-500.0,0.000239,7]
[420911945,1776713448648,-500.0,0.000239,7]
[420911946,1776713448657,-500.0,0.000239,7]
[420911947,1776713448666,-500.0,0.000239,7]
[420911948,1776713448675,-500.0,0.000239,7]
[420911949,1776713448684,-500.0,0.000239,7]
[420911950,1776713448694,-500.0,0.000239,7]
[420911951,1776713448703,-500.0,0.000239,7]
[420911952,1776713448712,-500.0,0.000239,7]
[420911953,1776713448722,-500.0,0.000239,7]
[420911954,1776713448731,-500.0,0.000239,7]
[420911955,1776713448741,-500.0,0.000239,7]
[420911956,1776713448750,-500.0,0.000239,7]
[420911957,1776713448759,-500.0,0.000239,7]
[420911958,1776713448769,-500.0,0.000239,7]
[420911959,1776713448778,-500.0,0.000239,7]
[420911960,1776713448788,-500.0,0.000239,7]
[420911961,1776713448797,-500.0,0.000239,7]
[420911962,1776713448807,-500.0,0.000239,7]
[420911963,1776713448816,-500.0,0.000239,7]
[420911964,1776713448826,-500.0,0.000239,7]
[420911965,1776713448835,-500.0,0.000239,7]
[420911966,1776713448845,-500.0,0.000239,7]
[420911967,1776713448855,-500.0,0.000239,7]
[420911968,1776713448864,-500.0,0.000239,7]
[420911969,1776713448873,-500.0,0.000239,7]
[420911970,1776713448883,-500.0,0.000239,7]
[420911971,1776713448892,-500.0,0.000239,7]
[420911972,1776713448902,-500.0,0.000239,7]
[420911973,1776713448912,-500.0,0.000239,7]
[420911974,1776713448922,-500.0,0.000239,7]
[420911975,1776713448931,-500.0,0.000239,7]
[420911976,1776713448940,-500.0,0.000239,7]
[420911977,1776713448951,-15.06009577,0.000239,7]
[420911978,1776713448996,-484.93990423,0.000239,7]
[420911979,1776713449005,-500.0,0.000239,7]
[420911980,1776713449015,-500.0,0.000239,7]
[420911981,1776713449025,-500.0,0.000239,7]
[420911982,1776713449034,-392.71,0.000239,7]
[420911983,1776713449044,-500.0,0.000239,7]
[420911984,1776713449052,-500.0,0.000239,7]
[420911985,1776713449062,-500.0,0.000239,7]
[420911986,1776713449071,-500.0,0.000239,7]
[420911987,1776713449080,-500.0,0.000239,7]
[420911988,1776713449090,-500.0,0.000239,7]
[420911989,1776713449099,-500.0,0.000239,7]
[420911990,1776713449108,-500.0,0.000239,7]
[420911991,1776713449117,-500.0,0.000239,7]
[420911992,1776713449127,-500.0,0.000239,7]
[420911993,1776713449137,-500.0,0.000239,7]
[420911994,1776713449146,-500.0,0.000239,7]
[420911995,1776713449155,-500.0,0.000239,7]
[420911996,1776713449164,-500.0,0.000239,7]
[420911997,1776713449174,-500.0,0.000239,7]
[420911998,1776713449183,-500.0,0.000239,7]
[420911999,1776713449193,-500.0,0.000239,7]
[420912000,1776713449203,-500.0,0.000239,7]
[420912001,1776713449212,-500.0,0.000239,7]
[420912002,1776713449222,-122.35009324,0.000239,7]
[420912003,1776713449619,-377.64990676,0.000239,7]
[420912004,1776713449628,-500.0,0.000239,7]
[420912005,1776713449638,-500.0,0.000239,7]
[420912006,1776713449647,-500.0,0.000239,7]
[420912007,1776713449657,-130.8019905,0.000239,7]
[420912008,1776713449669,-369.1980095,0.000239,7]
[420912009,1776713449678,-500.0,0.000239,7]
[420912010,1776713449687,-500.0,0.000239,7]
[420912011,1776713449697,-500.0,0.000239,7]
[420912012,1776713449706,-500.0,0.000239,7]
[420912013,1776713449716,-500.0,0.000239,7]
[420912014,1776713449725,-500.0,0.000239,7]
[420912015,1776713449734,-500.0,0.000239,7]
[420912016,1776713449744,-500.0,0.000239,7]
[420912017,1776713449754,-500.0,0.000239,7]
[420912018,1776713449763,-500.0,0.000239,7]
[420912019,1776713449772,-500.0,0.000239,7]
[420912020,1776713449782,-500.0,0.000239,7]
[420912021,1776713449792,-500.0,0.000239,7]
[420912022,1776713449802,-500.0,0.000239,7]
[420912023,1776713449812,-500.0,0.000239,7]
[420912024,1776713449822,-500.0,0.000239,7]
[420912025,1776713449831,-500.0,0.000239,7]
[420912026,1776713449840,-500.0,0.000239,7]
[420912027,1776713449850,-500.0,0.000239,7]
[420912028,1776713449859,-500.0,0.000239,7]
[420912029,1776713449868,-500.0,0.000239,7]
[420912030,1776713449878,-500.0,0.000239,7]
[420912031,1776713449887,-500.0,0.000239,7]
[420912032,1776713449897,-500.0,0.000239,7]
[420912033,1776713449906,-500.0,0.000239,7]
[420912034,1776713449916,-500.0,0.000239,7]
[420912035,1776713449925,-500.0,0.000239,7]
[420912036,1776713449935,-500.0,0.000239,7]
[420912037,1776713449944,-500.0,0.000239,7]
[420912038,1776713449953,-500.0,0.000239,7]
[420912039,1776713449963,-500.0,0.000239,7]
[420912040,1776713449972,-500.0,0.000239,7]
[420912041,1776713449981,-500.0,0.000239,7]
[420912042,1776713449991,-500.0,0.000239,7]
[420912043,1776713450000,-500.0,0.000239,7]
[420912044,1776713450010,-500.0,0.000239,7]
[420912045,1776713450019,-500.0,0.000239,7]
[420912046,1776713450029,-500.0,0.000239,7]
[420912047,1776713450038,-500.0,0.000239,7]
[420912048,1776713450048,-500.0,0.000239,7]
[420912049,1776713450057,-500.0,0.000239,7]
[420912050,1776713450066,-500.0,0.000239,7]
[420912051,1776713450075,-500.0,0.000239,7]
[420912052,1776713450085,-487.96,0.000239,7]
[420912053,1776713450095,-500.0,0.000239,7]
[420912054,1776713450104,-1093.97228058,0.000239,2]
[420912055,1776713450113,-350.0,0.00023956,2]
[420912056,1776713450123,-1189.59648833,0.00023996,2]
[420912057,1776713450132,-518.0,0.00024,2]
[420912058,1776713450142,-210.0,0.00024,2]
[420912059,1776713450151,-845.0,0.00024,2]
[420912060,1776713450160,-1825.0,0.00024,2]
[420912061,1776713450170,-1500.0,0.00024,2]
[420912062,1776713450179,-411.0,0.00024,2]
[420912063,1776713450189,-294.0,0.00024,2]
[420912064,1776713450198,-1919.0,0.00024,2]
[420912065,1776713450208,-626.0,0.00024,2]
[420912066,1776713450218,-536.0,0.00024,2]
[420912067,1776713450227,-2240.427984,0.00024,2]
[420912068,1776713450237,-2240.427984,0.00024,2]
[420912069,1776713450247,-2240.427984,0.00024,2]
[420912070,1776713450256,-2240.427984,0.00024,2]
[420912071,1776713450266,-151.0,0.00024,15]
[420912072,1776713450276,-151.0,0.00024,15]
[420912073,1776713450285,-568.11,0.00024082,2]
[420912074,1776713450295,-568.11,0.00024082,2]
[420912075,1776713450304,-477.92,0.00024082,2]
[420912076,1776713450313,-570.35,0.0002409,2]
[420912077,1776713450322,-638.27,0.00024105,2]
[420912078,1776713450332,-314.7,0.00024114,2]
[420912079,1776713450342,-350.0,0.0002413,2]
[420912080,1776713450352,-350.0,0.00024148,2]
[420912081,1776713450361,-15505.1769438,0.00024224,2]
[420912082,1776713450371,-2014.3928548,0.00024224,2]
[420912083,1776713450380,-150.0,0.00024288,2]
[420912084,1776713450389,-150.0,0.00024288,2]
[420912085,1776713450399,-150.0,0.00024288,2]
[420912086,1776713450408,-150.0,0.00024288,2]
[420912087,1776713450417,-150.0,0.00024288,2]
[420912088,1776713450427,-150.0,0.00024288,2]
[420912089,1776713450436,-1447.56490554,0.00024328,2]
[420912090,1776713450445,-297.25,0.0002435,60]
[420912091,1776713450455,-639.85005043,0.00024366,2]
[420912092,1776713450464,-1011.66720874,0.00024402,5]
[420912093,1776713450474,-1138.28862613,0.00024402,5]
[420912094,1776713450483,-1114.48491358,0.00024402,5]
[420912095,1776713450493,-1066.14390526,0.00024402,5]
[420912096,1776713450503,-151.0,0.00024402,2]
[420912097,1776713450513,-250.0,0.00024421,2]
[420912098,1776713450523,-150.0,0.0002443,4]
[420912099,1776713450532,-350.0,0.00024456,2]
[420912100,1776713450542,-150.0,0.00024572,4]
[420912101,1776713450551,-150.0,0.00024588,4]
[420912102,1776713450560,-5977.8691,0.00024601,2]
[420912103,1776713450570,-169.55,0.0002463,2]
[420912104,1776713450579,-192.78465642,0.0002463,2]
[420912105,1776713450588,-1531.83419,0.0002465,2]
[420912106,1776713450598,-1531.8342,0.0002465,2]
[420912107,1776713450607,-1531.8342,0.0002465,2]
[420912108,1776713450616,-150.0,0.00024658,4]
[420912109,1776713450625,-166.814472,0.00024658,2]
[420912110,1776713450635,-166.814472,0.00024658,2]
[420912111,1776713450644,-166.814472,0.00024658,2]
[420912112,1776713450654,-166.814472,0.00024658,2]
[420912113,1776713450663,-150.0,0.00024658,2]
[420912114,1776713450672,-250.0,0.00024674,5]
[420912115,1776713450682,-250.0,0.00024674,5]
[420912116,1776713450691,-200.0,0.000247,2]
[420912117,1776713450700,-500.0,0.00024701,2]
[420912118,1776713450709,-200.0,0.00024701,2]
[420912119,1776713450719,-200.0,0.00024701,2]
[420912120,1776713450728,-10242.9808,0.00024712,2]
[420912121,1776713450737,-150.0,0.00024714,4]
[420912122,1776713450747,-150.0,0.00024741,4]
[420912123,1776713450756,-200.0,0.00024786,2]
[420912124,1776713450766,-200.0,0.00024786,2]
[420912125,1776713450775,-200.0,0.00024786,2]
[420912126,1776713450784,-200.0,0.00024786,2]
[420912127,1776713450794,-200.0,0.00024786,2]
[420912128,1776713450804,-200.0,0.00024786,2]
[420912129,1776713450813,-200.0,0.00024786,2]
[420912130,1776713450823,-261.0,0.00024786,2]
[420912131,1776713450833,-351.739541,0.000248,10]
[420912132,1776713450843,-192.86,0.000248,11]
[420912133,1776713450852,-192.86,0.000248,11]
[420912134,1776713450862,-151.0,0.00024812,3]
[420912135,1776713450871,-200.0,0.00024812,3]
[420912136,1776713450880,-151.0,0.00024812,3]
[420912137,1776713450890,-200.0,0.00024812,3]
[420912138,1776713450900,-151.0,0.00024812,3]
[420912139,1776713450909,-500.0,0.00024812,3]
[420912140,1776713450918,-200.0,0.00024812,3]
[420912141,1776713450927,-151.0,0.00024812,3]
[420912142,1776713450936,-500.0,0.00024812,3]
[420912143,1776713450946,-200.0,0.00024812,3]
[420912144,1776713450955,-500.0,0.00024812,3]
[420912145,1776713450964,-151.0,0.00024812,3]
[420912146,1776713450973,-200.0,0.00024812,3]
[420912147,1776713450982,-500.0,0.00024812,3]
[420912148,1776713450992,-151.0,0.00024812,3]
[420912149,1776713451001,-200.0,0.00024812,3]
[420912150,1776713451010,-500.0,0.00024812,3]
[420912151,1776713451020,-151.0,0.00024812,3]
[420912152,1776713451029,-157.35225011,0.00024812,3]
[420912153,1776713451039,-500.0,0.00024812,3]
[420912154,1776713451048,-151.0,0.00024812,3]
[420912155,1776713451057,-500.0,0.00024812,3]
[420912156,1776713451066,-151.0,0.00024812,3]
[420912157,1776713451075,-500.0,0.00024812,3]
[420912158,1776713451084,-500.0,0.00024812,3]
[420912159,1776713451095,-500.0,0.00024812,3]
[420912160,1776713451104,-151.0,0.00024812,3]
[420912161,1776713451113,-330.58746423,0.00024812,3]
[420912162,1776713451123,-151.0,0.00024812,3]
[420912163,1776713451132,-151.0,0.00024812,3]
[420912164,1776713451141,-151.0,0.00024812,3]
[420912165,1776713451150,-151.0,0.00024812,3]
[420912166,1776713451159,-151.0,0.00024812,3]
[420912167,1776713451168,-151.0,0.00024812,3]
[420912168,1776713451177,-2000.0,0.00024812,3]
[420912169,1776713451186,-151.0,0.00024812,3]
[420912170,1776713451195,-2000.0,0.00024812,3]
[420912171,1776713451204,-151.0,0.00024812,3]
[420912172,1776713451555,-2000.0,0.00024812,3]
[420912173,1776713451565,-151.0,0.00024812,3]
[420912174,1776713451574,-2000.0,0.00024812,3]
[420912175,1776713451584,-213.9027629,0.00024812,3]
[420912176,1776713451594,-2000.0,0.00024812,3]
[420912177,1776713451603,-2000.0,0.00024812,3]
[420912178,1776713451613,-2000.0,0.00024812,3]
[420912179,1776713451623,-2000.0,0.00024812,3]
[420912180,1776713451632,-1500.0,0.00024812,3]
[420912181,1776713451642,-287.12506521,0.00024812,3]
[420912182,1776713451651,-235.75327194,0.00024812,3]
[420912183,1776713451661,-244.476143,0.00024812,3]
[420912184,1776713451670,-372.09560582,0.00024812,3]
[420912185,1776713451680,-150.0,0.00024824,4]
[420912186,1776713451689,-151.0,0.00024849,2]
[420912187,1776713451699,-150.0,0.00024856,4]
[420912188,1776713451709,-477.92,0.00024871,2]
[420912189,1776713451718,-570.35,0.00024871,2]
[420912190,1776713451728,-638.27,0.00024871,2]
[420912191,1776713451737,-477.92,0.00024871,2]
[420912192,1776713451747,-570.35,0.00024871,2]
[420912193,1776713451756,-568.11,0.00024871,2]
[420912194,1776713451766,-477.92,0.00024871,2]
[420912195,1776713451775,-638.27,0.00024871,2]
[420912196,1776713451785,-570.35,0.00024871,2]
[420912197,1776713451794,-201.52,0.00024872,2]
[420912198,1776713451804,-183.38,0.00024872,2]
[420912199,1776713451817,-477.9,0.00024872,2]
[420912200,1776713451826,-568.11,0.00024872,2]
[420912201,1776713451836,-477.94,0.00024872,2]
[420912202,1776713451845,-568.11,0.00024872,2]
[420912203,1776713451855,-638.27,0.00024873,2]
[420912204,1776713451864,-477.92,0.00024873,2]
[420912205,1776713451874,-477.92,0.00024873,2]
[420912206,1776713451883,-477.92,0.00024873,2]
[420912207,1776713451893,-638.27,0.00024873,2]
[420912208,1776713451902,-477.92,0.00024873,2]
[420912209,1776713451912,-570.35,0.00024875,2]
[420912210,1776713451921,-332.33,0.00024875,2]
[420912211,1776713451930,-477.92,0.00024875,2]
[420912212,1776713451941,-183.38,0.00024875,2]
[420912213,1776713451950,-570.35,0.00024876,2]
[420912214,1776713451959,-477.92,0.00024876,2]
[420912215,1776713451969,-568.11,0.00024876,2]
[420912216,1776713451978,-638.27,0.00024879,2]
[420912217,1776713451988,-183.18,0.0002488,2]
[420912218,1776713451997,-231.45,0.0002488,2]
[420912219,1776713452007,-568.11,0.0002488,2]
[420912220,1776713452018,-392.61,0.0002488,2]
[420912221,1776713452027,-570.35,0.00024881,2]
[420912222,1776713452039,-570.35,0.00024881,2]
[420912223,1776713452049,-570.38,0.00024881,2]
[420912224,1776713452059,-477.92,0.00024882,2]
[420912225,1776713452069,-570.35,0.00024882,2]
[420912226,1776713452078,-568.11,0.00024885,2]
[420912227,1776713452088,-568.11,0.00024886,2]
[420912228,1776713452098,-638.27,0.00024886,2]
[420912229,1776713452108,-183.38,0.00024886,2]
[420912230,1776713452119,-150.0,0.00024887,4]
[420912231,1776713452128,-161.0,0.0002489,5]
[420912232,1776713452139,-500.0,0.00024899,2]
[420912233,1776713452150,-500.0,0.00024899,2]
[420912234,1776713452160,-2500.0,0.00024899,2]
[420912235,1776713452170,-150.0,0.000249,2]
[420912236,1776713452180,-150.0,0.000249,2]
[420912237,1776713452190,-162.957796,0.000249,2]
[420912238,1776713452201,-200.0,0.000249,2]
[420912239,1776713452211,-331.07812664,0.000249,2]
[420912240,1776713452221,-151.0,0.000249,2]
[420912241,1776713452231,-2931.56,0.000249,7]
[420912242,1776713452241,-200.0,0.000249,2]
[420912243,1776713452252,-2083.0,0.000249,30]
[420912244,1776713452262,-2083.0,0.000249,30]
[420912245,1776713452272,-2083.0,0.000249,30]
[420912246,1776713452281,-2083.0,0.000249,30]
[420912247,1776713452291,-2083.0,0.000249,30]
[420912248,1776713452301,-2083.0,0.000249,30]
[420912249,1776713452311,-2083.0,0.000249,30]
[420912250,1776713452321,-2083.0,0.000249,30]
[420912251,1776713452331,-2083.0,0.000249,30]
[420912252,1776713452341,-1753.0,0.000249,30]
[420912253,1776713452351,-151.0,0.000249,2]
[420912254,1776713452360,-200.0,0.000249,2]
[420912255,1776713452371,-1531.83419,0.000249,2]
[420912256,1776713452380,-1531.8342,0.000249,2]
[420912257,1776713452391,-1531.8342,0.000249,2]
[420912258,1776713452401,-2500.0,0.000249,9]
[420912259,1776713452411,-138460.342526,0.000249,2]
[420912260,1776713452420,-2240.427984,0.000249,2]
[420912261,1776713452430,-2240.427984,0.000249,2]
[420912262,1776713452443,-2240.427984,0.000249,2]
[420912263,1776713452453,-2240.427984,0.000249,2]
[420912264,1776713452463,-200.0,0.000249,2]
[420912265,1776713452474,-332.33,0.00024904,2]
[420912266,1776713452485,-150.0,0.00024907,4]
[420912267,1776713452495,-183.38,0.00024912,2]
[420912268,1776713452506,-570.35,0.00024912,2]
[420912269,1776713452516,-570.37,0.00024927,2]
[420912270,1776713452527,-568.11,0.00024927,2]
[420912271,1776713452537,-398.0,0.00024932,7]
[420912272,1776713452547,-150.0,0.00024962,4]
[420912273,1776713452559,-150.0,0.00024962,4]
[420912274,1776713452569,-350.0,0.00024968,2]
[420912275,1776713452579,-150.0,0.0002499,4]
[420912276,1776713452590,-166.814472,0.0002499,2]
[420912277,1776713452601,-166.814472,0.0002499,2]
[420912278,1776713452613,-166.814472,0.0002499,2]
[420912279,1776713452623,-166.814472,0.0002499,2]
[420912280,1776713452633,-150.0,0.00024998,4]
[420912281,1776713452644,-150.0,0.00025,2]
[420912282,1776713452654,-150.0,0.00025,2]
[420912283,1776713452664,-150.0,0.00025,2]
[420912284,1776713452674,-150.0,0.00025,2]
[420912285,1776713452684,-150.0,0.00025,2]
[420912286,1776713452694,-150.0,0.00025,2]
[420912287,1776713452704,-150.0,0.00025,2]
[420912288,1776713452714,-150.0,0.00025,2]
[420912289,1776713452724,-150.0,0.00025,2]
[420912290,1776713452735,-150.0,0.00025,2]
[420912291,1776713452745,-150.0,0.00025,2]
[420912292,1776713452757,-150.0,0.00025,2]
[420912293,1776713452767,-150.0,0.00025,2]
[420912294,1776713452777,-167.982,0.00025,2]
[420912295,1776713452787,-1123.9025238,0.00025,2]
[420912296,1776713452797,-209.34936937,0.00025,2]
[420912297,1776713452807,-1800.86128186,0.00025,2]
[420912298,1776713452817,-2000.0,0.00025,2]
[420912299,1776713452827,-540.0,0.00025,2]
[420912300,1776713452839,-616.23526403,0.00025,2]
[420912301,1776713452851,-3070.66261936,0.00025,2]
[420912302,1776713452861,-7191.50577985,0.00025,2]
[420912303,1776713452871,-2219.68159174,0.00025,2]
[420912304,1776713452882,-168.78277739,0.00025,2]
[420912305,1776713452893,-3832.17044309,0.00025,2]
[420912306,1776713452903,-150.0,0.00025,2]
[420912307,1776713452914,-158.0,0.00025,2]
[420912308,1776713452923,-527.39502659,0.00025,2]
[420912309,1776713452933,-227.43665941,0.00025,2]
[420912310,1776713452942,-855.48680397,0.00025,2]
[420912311,1776713452952,-1837.0,0.00025,2]
[420912312,1776713452961,-1502.0,0.00025,2]
[420912313,1776713452971,-423.0,0.00025,2]
[420912314,1776713452981,-308.0,0.00025,2]
[420912315,1776713452991,-398.0,0.00025,7]
[420912316,1776713453001,-1928.0,0.00025,2]
[420912317,1776713453011,-636.0,0.00025,2]
[420912318,1776713453020,-540.0,0.00025,2]
[420912319,1776713453030,-1049.0,0.00025,2]
[420912320,1776713453039,-150.0,0.00025,2]
[420912321,1776713453049,-150.0,0.00025025,2]
[420912322,1776713453058,-150.0,0.00025025,2]
[420912323,1776713453067,-150.0,0.00025025,2]
[420912324,1776713453077,-150.0,0.00025025,2]
[420912325,1776713453087,-150.0,0.00025025,2]
[420912326,1776713453097,-263.0,0.00025025,2]
[420912327,1776713453106,-150.0,0.00025073,4]
[420912328,1776713453116,-262.0,0.00025093,2]
[420912329,1776713453125,-150.0,0.0002514,4]
[420912330,1776713453136,-200.0,0.00025149,2]
[420912331,1776713453146,-200.0,0.00025149,2]
[420912332,1776713453155,-200.0,0.00025149,2]
[420912333,1776713453164,-500.0,0.0002515,2]
[420912334,1776713453174,-500.0,0.0002515,2]
[420912335,1776713453184,-500.0,0.0002515,2]
[420912336,1776713453193,-500.0,0.0002515,2]
[420912337,1776713453202,-500.0,0.0002515,2]
[420912338,1776713453211,-500.0,0.0002515,2]
[420912339,1776713453220,-500.0,0.0002515,2]
[420912340,1776713453230,-500.0,0.0002515,2]
[420912341,1776713453239,-627.0,0.0002515,2]
[420912342,1776713453249,-150.0,0.00025156,4]
[420912343,1776713453259,-150.0,0.00025187,4]
[420912344,1776713453269,-510.0,0.00025194,120]
[420912345,1776713453278,-550.0,0.00025197,120]
[420912346,1776713453288,-550.0,0.00025197,120]
[420912347,1776713453297,-506.0,0.00025197,120]
[420912348,1776713453306,-184.0,0.00025197,120]
[420912349,1776713453316,-357.0,0.00025197,120]
[420912350,1776713453325,-398.0,0.00025205,7]
[420912351,1776713453335,-400.0,0.00025207,120]